[Event "Early-Titled-Tuesday-Blitz-April-23-2024"]
[Site "Chess.com"]
[Date "2024.04.23"]
[Round "3"]
[White "scarabee43"]
[Black "Nechitaylo_Nikita"]
[Result "1-0"]
[WhiteElo "2846"]
[BlackElo "2327"]
[TimeControl "180+1"]
[EndTime "8:28:10 PDT"]
[Termination "scarabee43 won on time"]

1. Nf3 {[%clk 0:03:00.9]} 1... c5 {[%clk 0:02:59.6]} 2. c4 {[%clk 0:03:01.1]}
2... Nc6 {[%clk 0:02:59.8]} 3. Nc3 {[%clk 0:03:01.5]} 3... Nd4 {[%clk
0:03:00.7]} 4. e3 {[%clk 0:02:59.8]} 4... Nxf3+ {[%clk 0:03:01]} 5. Qxf3 {[%clk
0:03:00.5]} 5... Nf6 {[%clk 0:03:01.3]} 6. b3 {[%clk 0:02:52.5]} 6... e6 {[%clk
0:03:00.7]} 7. Bb2 {[%clk 0:02:53]} 7... d5 {[%clk 0:02:56.6]} 8. cxd5 {[%clk
0:02:52.5]} 8... exd5 {[%clk 0:02:57.2]} 9. Bb5+ {[%clk 0:02:44]} 9... Bd7
{[%clk 0:02:56.7]} 10. O-O {[%clk 0:02:36.2]} 10... Bxb5 {[%clk 0:02:48.1]} 11.
Nxb5 {[%clk 0:02:36.1]} 11... Be7 {[%clk 0:02:48.9]} 12. Rac1 {[%clk 0:02:32.5]}
12... Qb6 {[%clk 0:01:58.2]} 13. Nc3 {[%clk 0:02:03.8]} 13... Qc6 {[%clk
0:01:42.3]} 14. d4 {[%clk 0:01:57.6]} 14... cxd4 {[%clk 0:01:33.9]} 15. Ne2
{[%clk 0:01:53.5]} 15... Qa6 {[%clk 0:01:21.7]} 16. Nxd4 {[%clk 0:01:53.5]}
16... Ne4 {[%clk 0:00:53.3]} 17. Nf5 {[%clk 0:01:47.2]} 17... Bf6 {[%clk
0:00:44.8]} 18. Bxf6 {[%clk 0:01:07.5]} 18... Qxf6 {[%clk 0:00:43.8]} 19. Rc7
{[%clk 0:01:06.4]} 19... O-O {[%clk 0:00:08.9]} 20. Ne7+ {[%clk 0:01:05.5]}
20... Kh8 {[%clk 0:00:08.4]} 21. Qxf6 {[%clk 0:01:05.8]} 21... Nxf6 {[%clk
0:00:09.3]} 22. Rxb7 {[%clk 0:01:06.1]} 22... Rfb8 {[%clk 0:00:03.6]} 23. Rc7
{[%clk 0:01:00.4]} 23... Rd8 {[%clk 0:00:02.3]} 24. Rfc1 {[%clk 0:00:57.1]}
24... d4 {[%clk 0:00:02.9]} 25. Nc6 {[%clk 0:00:57.2]} 25... Rd6 {[%clk
0:00:01.7]} 26. Nxd4 {[%clk 0:00:57.1]} 26... Nd5 {[%clk 0:00:02.1]} 27. Rc8+
{[%clk 0:00:57.4]} 27... Rd8 {[%clk 0:00:02.6]} 28. Rxa8 {[%clk 0:00:55.4]}
28... Rxa8 {[%clk 0:00:02.7]} 29. Rc5 {[%clk 0:00:55.2]} 29... Nb4 {[%clk
0:00:03]} 30. a3 {[%clk 0:00:55]} 30... Nd3 {[%clk 0:00:02.7]} 31. Rc7 {[%clk
0:00:55.1]} 31... Kg8 {[%clk 0:00:01]} 32. h4 {[%clk 0:00:50.6]} 1-0

[Event "Early-Titled-Tuesday-Blitz-April-23-2024"]
[Site "Chess.com"]
[Date "2024.04.23"]
[Round "3"]
[White "EliteChess0967"]
[Black "L4ncer"]
[Result "0-1"]
[WhiteElo "2429"]
[BlackElo "2293"]
[TimeControl "180+1"]
[EndTime "8:28:11 PDT"]
[Termination "L4ncer won by checkmate"]

1. d4 {[%clk 0:02:58.7]} 1... g6 {[%clk 0:02:59.6]} 2. c4 {[%clk 0:02:55.8]}
2... Bg7 {[%clk 0:02:59.8]} 3. Nf3 {[%clk 0:02:55]} 3... Nf6 {[%clk 0:02:59.1]}
4. g3 {[%clk 0:02:54]} 4... O-O {[%clk 0:02:59]} 5. Bg2 {[%clk 0:02:54.7]} 5...
d6 {[%clk 0:02:59.5]} 6. O-O {[%clk 0:02:54.9]} 6... Nbd7 {[%clk 0:02:59.9]} 7.
b3 {[%clk 0:02:55.6]} 7... a5 {[%clk 0:02:57.3]} 8. Bb2 {[%clk 0:02:55.6]} 8...
a4 {[%clk 0:02:57.7]} 9. Nbd2 {[%clk 0:02:55.1]} 9... a3 {[%clk 0:02:57.2]} 10.
Bc3 {[%clk 0:02:55.2]} 10... c6 {[%clk 0:02:55.3]} 11. e4 {[%clk 0:02:54.7]}
11... e5 {[%clk 0:02:47.3]} 12. dxe5 {[%clk 0:02:44.2]} 12... dxe5 {[%clk
0:02:47.2]} 13. Nxe5 {[%clk 0:02:35.1]} 13... Nxe4 {[%clk 0:02:29.6]} 14. Nxe4
{[%clk 0:02:34.8]} 14... Nxe5 {[%clk 0:02:25.6]} 15. Bb4 {[%clk 0:01:52.1]}
15... Bg4 {[%clk 0:01:58.6]} 16. f3 {[%clk 0:01:38.6]} 16... Bf5 {[%clk
0:00:20.3]} 17. Bxf8 {[%clk 0:01:36.9]} 17... Qxf8 {[%clk 0:00:17.9]} 18. Qd6
{[%clk 0:01:32.9]} 18... Rd8 {[%clk 0:00:03.8]} 19. Qxf8+ {[%clk 0:01:32.3]}
19... Bxf8 {[%clk 0:00:04.7]} 20. Rad1 {[%clk 0:01:31]} 20... Nd3 {[%clk
0:00:04.3]} 21. h4 {[%clk 0:01:18.6]} 21... Bxe4 {[%clk 0:00:04.2]} 22. fxe4
{[%clk 0:01:19]} 22... Bc5+ {[%clk 0:00:04.1]} 23. Kh2 {[%clk 0:01:19.7]} 23...
Rd4 {[%clk 0:00:03.8]} 24. e5 {[%clk 0:01:18.1]} 24... Nxe5 {[%clk 0:00:03.5]}
25. Rxd4 {[%clk 0:01:17.9]} 25... Bxd4 {[%clk 0:00:04.4]} 26. Rd1 {[%clk
0:01:17.9]} 26... c5 {[%clk 0:00:04.7]} 27. Bxb7 {[%clk 0:01:16.9]} 27... Ng4+
{[%clk 0:00:04.9]} 28. Kg2 {[%clk 0:01:04.2]} 28... Ne3+ {[%clk 0:00:05]} 29.
Kf3 {[%clk 0:01:01.8]} 29... Nxd1 {[%clk 0:00:05.9]} 30. Ke2 {[%clk 0:00:56.6]}
30... Nc3+ {[%clk 0:00:05.9]} 31. Kd3 {[%clk 0:00:57.1]} 31... Nxa2 {[%clk
0:00:06.8]} 32. Kc2 {[%clk 0:00:57.8]} 32... Nb4+ {[%clk 0:00:05.9]} 33. Kb1
{[%clk 0:00:58.5]} 33... a2+ {[%clk 0:00:06.2]} 34. Kc1 {[%clk 0:00:59.3]} 34...
a1=Q+ {[%clk 0:00:06.3]} 35. Kd2 {[%clk 0:01:00.2]} 35... Qc3+ {[%clk
0:00:06.6]} 36. Ke2 {[%clk 0:01:00.7]} 36... Qe3+ {[%clk 0:00:07]} 37. Kd1
{[%clk 0:01:01]} 37... Qd3+ {[%clk 0:00:04.2]} 38. Ke1 {[%clk 0:01:00.1]} 38...
Nc2# {[%clk 0:00:04.3]} 0-1

[Event "Early-Titled-Tuesday-Blitz-April-23-2024"]
[Site "Chess.com"]
[Date "2024.04.23"]
[Round "3"]
[White "Fjal"]
[Black "ilqar_74"]
[Result "0-1"]
[WhiteElo "2333"]
[BlackElo "2754"]
[TimeControl "180+1"]
[EndTime "8:28:16 PDT"]
[Termination "ilqar_74 won by resignation"]

1. Nf3 {[%clk 0:02:52.8]} 1... Nf6 {[%clk 0:02:58.9]} 2. g3 {[%clk 0:02:52.7]}
2... g6 {[%clk 0:02:56.9]} 3. Bg2 {[%clk 0:02:53.6]} 3... Bg7 {[%clk 0:02:57.5]}
4. O-O {[%clk 0:02:53.9]} 4... O-O {[%clk 0:02:58.1]} 5. d3 {[%clk 0:02:54.2]}
5... d5 {[%clk 0:02:57.9]} 6. c4 {[%clk 0:02:53.7]} 6... d4 {[%clk 0:02:56.9]}
7. b4 {[%clk 0:02:50.2]} 7... Re8 {[%clk 0:02:56.2]} 8. Bf4 {[%clk 0:02:42.4]}
8... Nbd7 {[%clk 0:02:53.3]} 9. a4 {[%clk 0:02:33.8]} 9... e5 {[%clk 0:02:52.5]}
10. Bc1 {[%clk 0:02:33.7]} 10... a5 {[%clk 0:02:52]} 11. b5 {[%clk 0:02:30.2]}
11... Rb8 {[%clk 0:02:50.8]} 12. Ba3 {[%clk 0:02:29.7]} 12... b6 {[%clk
0:02:50.3]} 13. Nbd2 {[%clk 0:02:30.3]} 13... Bb7 {[%clk 0:02:50.2]} 14. Nb3
{[%clk 0:02:29.6]} 14... Bf8 {[%clk 0:02:40.8]} 15. Qc1 {[%clk 0:02:29.3]} 15...
c5 {[%clk 0:02:34.7]} 16. bxc6 {[%clk 0:02:16.2]} 16... Bxc6 {[%clk 0:02:33.8]}
17. Bxf8 {[%clk 0:02:16.4]} 17... Rxf8 {[%clk 0:02:26.7]} 18. c5 {[%clk
0:02:17]} 18... Rc8 {[%clk 0:02:19.9]} 19. Qa3 {[%clk 0:01:49.8]} 19... bxc5
{[%clk 0:02:14.2]} 20. Rfc1 {[%clk 0:01:27.7]} 20... e4 {[%clk 0:01:58.4]} 21.
Ng5 {[%clk 0:00:58.1]} 21... exd3 {[%clk 0:01:45]} 22. Bxc6 {[%clk 0:00:56.4]}
22... Rxc6 {[%clk 0:01:45.9]} 23. Nxd4 {[%clk 0:00:56.7]} 23... Rc8 {[%clk
0:01:35.2]} 24. Nb5 {[%clk 0:00:43.3]} 24... dxe2 {[%clk 0:01:31.4]} 25. Qf3
{[%clk 0:00:41.9]} 25... Qe7 {[%clk 0:01:28.1]} 26. Re1 {[%clk 0:00:40.4]} 26...
Rce8 {[%clk 0:01:19.4]} 27. Ra2 {[%clk 0:00:40.3]} 27... Ne4 {[%clk 0:01:16.5]}
28. Nxe4 {[%clk 0:00:33.8]} 28... Qxe4 {[%clk 0:01:17]} 29. Qc3 {[%clk
0:00:20.5]} 29... Ne5 {[%clk 0:01:12.5]} 30. Nd6 {[%clk 0:00:18.3]} 30... Nf3+
{[%clk 0:00:58.3]} 31. Kh1 {[%clk 0:00:17.7]} 31... Qd5 {[%clk 0:00:56.6]} 32.
Nxe8 {[%clk 0:00:09.6]} 32... Nxe1+ {[%clk 0:00:55.8]} 33. f3 {[%clk 0:00:10.2]}
33... Rxe8 {[%clk 0:00:54.9]} 34. Qxe1 {[%clk 0:00:07.2]} 34... Qd1 {[%clk
0:00:54.2]} 35. Ra1 {[%clk 0:00:05]} 35... Qxa1 {[%clk 0:00:54.2]} 0-1

[Event "Early-Titled-Tuesday-Blitz-April-23-2024"]
[Site "Chess.com"]
[Date "2024.04.23"]
[Round "3"]
[White "Larina_Maria"]
[Black "jeetjain"]
[Result "0-1"]
[WhiteElo "2343"]
[BlackElo "2607"]
[TimeControl "180+1"]
[EndTime "8:28:17 PDT"]
[Termination "jeetjain won by resignation"]

1. e4 {[%clk 0:03:00.9]} 1... e6 {[%clk 0:02:42]} 2. Nf3 {[%clk 0:03:00.4]} 2...
d5 {[%clk 0:02:41.9]} 3. e5 {[%clk 0:03:00.9]} 3... c5 {[%clk 0:02:41.6]} 4. b4
{[%clk 0:03:01.6]} 4... d4 {[%clk 0:02:34]} 5. bxc5 {[%clk 0:02:43.2]} 5... Bxc5
{[%clk 0:02:23]} 6. Bb5+ {[%clk 0:02:40.4]} 6... Nc6 {[%clk 0:02:18.2]} 7. Ba3
{[%clk 0:02:29.4]} 7... Qb6 {[%clk 0:02:10]} 8. Qe2 {[%clk 0:02:21]} 8... Ne7
{[%clk 0:02:08.3]} 9. Ng5 {[%clk 0:01:59]} 9... a6 {[%clk 0:02:00.6]} 10. Bxc6+
{[%clk 0:01:54.3]} 10... Nxc6 {[%clk 0:02:00.3]} 11. Bxc5 {[%clk 0:01:54.4]}
11... Qxc5 {[%clk 0:02:00.5]} 12. Ne4 {[%clk 0:01:54.9]} 12... Qxe5 {[%clk
0:02:00.3]} 13. d3 {[%clk 0:01:34.8]} 13... O-O {[%clk 0:01:52.1]} 14. Nbd2
{[%clk 0:01:32.8]} 14... b5 {[%clk 0:01:46.6]} 15. Nf3 {[%clk 0:01:32.3]} 15...
Qd5 {[%clk 0:01:43.5]} 16. O-O {[%clk 0:01:28.2]} 16... Bb7 {[%clk 0:01:38.9]}
17. Rfd1 {[%clk 0:01:26.6]} 17... Rac8 {[%clk 0:01:33.4]} 18. c4 {[%clk
0:01:24]} 18... dxc3 {[%clk 0:01:30.4]} 19. Nxc3 {[%clk 0:01:24.2]} 19... Qh5
{[%clk 0:01:30]} 20. Ne4 {[%clk 0:01:19.3]} 20... Rfd8 {[%clk 0:01:24.8]} 21.
Qe3 {[%clk 0:01:13.3]} 21... Ne7 {[%clk 0:01:20.4]} 22. Ng3 {[%clk 0:01:10.6]}
22... Qg6 {[%clk 0:01:19.2]} 23. Ne5 {[%clk 0:01:08.6]} 23... Qf6 {[%clk
0:01:07.8]} 24. d4 {[%clk 0:00:37.5]} 24... Nd5 {[%clk 0:01:06.1]} 25. Qb3
{[%clk 0:00:29]} 25... Nf4 {[%clk 0:00:57.3]} 26. f3 {[%clk 0:00:27.6]} 26... h5
{[%clk 0:00:53.4]} 27. Ne4 {[%clk 0:00:27.5]} 27... Bxe4 {[%clk 0:00:44.5]} 28.
fxe4 {[%clk 0:00:28.4]} 28... Rxd4 {[%clk 0:00:44.2]} 29. Nf3 {[%clk 0:00:18.7]}
29... Rxe4 {[%clk 0:00:41.7]} 30. Rd6 {[%clk 0:00:16.6]} 30... Qxa1+ {[%clk
0:00:41.1]} 31. Rd1 {[%clk 0:00:15]} 31... Rc1 {[%clk 0:00:38.5]} 0-1

[Event "Early-Titled-Tuesday-Blitz-April-23-2024"]
[Site "Chess.com"]
[Date "2024.04.23"]
[Round "3"]
[White "klimkoj"]
[Black "NikitaShnadrygin"]
[Result "1-0"]
[WhiteElo "2918"]
[BlackElo "2683"]
[TimeControl "180+1"]
[EndTime "8:28:18 PDT"]
[Termination "klimkoj won on time"]

1. c4 {[%clk 0:03:00.9]} 1... Nf6 {[%clk 0:02:59.7]} 2. Nc3 {[%clk 0:03:00.7]}
2... d5 {[%clk 0:03:00]} 3. cxd5 {[%clk 0:03:00.6]} 3... Nxd5 {[%clk 0:03:00.9]}
4. Nf3 {[%clk 0:03:00.9]} 4... g6 {[%clk 0:03:00.8]} 5. e4 {[%clk 0:02:59.8]}
5... Nxc3 {[%clk 0:03:00.6]} 6. dxc3 {[%clk 0:03:00.7]} 6... Qxd1+ {[%clk
0:03:00.4]} 7. Kxd1 {[%clk 0:03:01.6]} 7... f6 {[%clk 0:03:00.5]} 8. Be3 {[%clk
0:02:58.7]} 8... e5 {[%clk 0:02:59]} 9. h4 {[%clk 0:02:53.1]} 9... h5 {[%clk
0:02:57]} 10. Kc2 {[%clk 0:02:51.8]} 10... Be6 {[%clk 0:02:56.1]} 11. a4 {[%clk
0:02:51.7]} 11... Nd7 {[%clk 0:02:55.4]} 12. a5 {[%clk 0:02:44.9]} 12... a6
{[%clk 0:02:40.7]} 13. Nd2 {[%clk 0:02:40]} 13... Bc5 {[%clk 0:02:40.2]} 14.
Bxc5 {[%clk 0:02:36.6]} 14... Nxc5 {[%clk 0:02:40.3]} 15. b4 {[%clk 0:02:37.4]}
15... Nd7 {[%clk 0:02:40.2]} 16. Bc4 {[%clk 0:02:18.5]} 16... Ke7 {[%clk
0:02:39.7]} 17. Rhb1 {[%clk 0:02:18.4]} 17... Rhd8 {[%clk 0:02:33.7]} 18. Bd5
{[%clk 0:02:13.9]} 18... Rab8 {[%clk 0:02:04.5]} 19. Nb3 {[%clk 0:02:10.1]}
19... f5 {[%clk 0:01:39.8]} 20. Bxe6 {[%clk 0:02:10.1]} 20... Kxe6 {[%clk
0:01:38.5]} 21. exf5+ {[%clk 0:02:01.5]} 21... gxf5 {[%clk 0:01:37.8]} 22. Re1
{[%clk 0:02:02.4]} 22... Kf6 {[%clk 0:01:33.4]} 23. Rad1 {[%clk 0:01:58.2]}
23... e4 {[%clk 0:01:02.3]} 24. f3 {[%clk 0:01:42.6]} 24... exf3 {[%clk
0:00:50.6]} 25. gxf3 {[%clk 0:01:43.5]} 25... Ne5 {[%clk 0:00:51.1]} 26. Nd4
{[%clk 0:01:41.5]} 26... Re8 {[%clk 0:00:36.1]} 27. Rd2 {[%clk 0:01:27.6]} 27...
Ng6 {[%clk 0:00:20.4]} 28. Rg1 {[%clk 0:01:23.1]} 28... Rbc8 {[%clk 0:00:11.5]}
29. Rdg2 {[%clk 0:01:18.5]} 29... Nf4 {[%clk 0:00:06]} 30. Rg5 {[%clk
0:01:17.9]} 30... Re5 {[%clk 0:00:05.1]} 31. Kd2 {[%clk 0:00:51.5]} 31... c5
{[%clk 0:00:05.1]} 32. bxc5 {[%clk 0:00:52.2]} 32... Rexc5 {[%clk 0:00:05.4]}
33. Rb1 {[%clk 0:00:52.1]} 33... Rxc3 {[%clk 0:00:02.6]} 34. Rxf5+ {[%clk
0:00:51.8]} 1-0

[Event "Early-Titled-Tuesday-Blitz-April-23-2024"]
[Site "Chess.com"]
[Date "2024.04.23"]
[Round "3"]
[White "McCarthyStone"]
[Black "SoCalJuniorChess"]
[Result "1-0"]
[WhiteElo "2398"]
[BlackElo "2145"]
[TimeControl "180+1"]
[EndTime "8:28:21 PDT"]
[Termination "McCarthyStone won by resignation"]

1. d4 {[%clk 0:02:59.7]} 1... Nf6 {[%clk 0:02:59.1]} 2. c4 {[%clk 0:02:58.4]}
2... e5 {[%clk 0:02:59.2]} 3. dxe5 {[%clk 0:02:56.3]} 3... Ng4 {[%clk
0:02:59.3]} 4. Nf3 {[%clk 0:02:52.2]} 4... Nc6 {[%clk 0:02:59]} 5. b3 {[%clk
0:02:46.7]} 5... Bb4+ {[%clk 0:02:53.6]} 6. Nbd2 {[%clk 0:02:45.1]} 6... Bc5
{[%clk 0:02:38.2]} 7. e3 {[%clk 0:02:43.4]} 7... Bxe3 {[%clk 0:02:38.8]} 8. fxe3
{[%clk 0:02:35.7]} 8... Nxe3 {[%clk 0:02:39.7]} 9. Qe2 {[%clk 0:02:36.1]} 9...
Nc2+ {[%clk 0:02:39.5]} 10. Kd1 {[%clk 0:02:36.8]} 10... Nxa1 {[%clk 0:02:40.4]}
11. Bb2 {[%clk 0:02:37.3]} 11... Nxb3 {[%clk 0:02:34.8]} 12. axb3 {[%clk
0:02:38.2]} 12... O-O {[%clk 0:02:34]} 13. Kc1 {[%clk 0:02:27.5]} 13... d6
{[%clk 0:02:33.7]} 14. exd6 {[%clk 0:02:25.9]} 14... Qxd6 {[%clk 0:02:31.7]} 15.
Ne4 {[%clk 0:01:58.3]} 15... Qf4+ {[%clk 0:02:31.4]} 16. Nfd2 {[%clk 0:01:57.2]}
16... Bf5 {[%clk 0:02:30.1]} 17. g3 {[%clk 0:01:54.5]} 17... Qg4 {[%clk
0:02:27.5]} 18. Qxg4 {[%clk 0:01:44.2]} 18... Bxg4 {[%clk 0:02:28.4]} 19. Bg2
{[%clk 0:01:45.1]} 19... Rad8 {[%clk 0:02:27]} 20. Nc5 {[%clk 0:01:37.1]} 20...
Rfe8 {[%clk 0:02:26.6]} 21. Nxb7 {[%clk 0:01:34.9]} 21... Rxd2 {[%clk
0:02:25.1]} 22. Kxd2 {[%clk 0:01:35.8]} 22... Re2+ {[%clk 0:02:24.6]} 23. Kc3
{[%clk 0:01:20.4]} 23... Rxg2 {[%clk 0:02:25.5]} 24. Nc5 {[%clk 0:01:16.2]}
24... Re2 {[%clk 0:02:19]} 25. Bc1 {[%clk 0:01:07.1]} 25... f6 {[%clk
0:02:12.9]} 26. Bf4 {[%clk 0:01:04.6]} 26... Ne5 {[%clk 0:02:11.3]} 27. Ra1
{[%clk 0:01:01.9]} 27... Rxh2 {[%clk 0:02:03.9]} 28. Rxa7 {[%clk 0:01:00.9]}
28... h5 {[%clk 0:01:57.7]} 29. Rxc7 {[%clk 0:01:00.9]} 29... h4 {[%clk
0:01:58.1]} 30. gxh4 {[%clk 0:00:55.5]} 30... Rxh4 {[%clk 0:01:59]} 31. Bxe5
{[%clk 0:00:52]} 31... fxe5 {[%clk 0:01:58.5]} 32. b4 {[%clk 0:00:41.2]} 32...
Rh3+ {[%clk 0:01:58.3]} 33. Kd2 {[%clk 0:00:41]} 33... Bf3 {[%clk 0:01:51]} 34.
b5 {[%clk 0:00:37.1]} 34... Rh4 {[%clk 0:01:50.9]} 35. Ne6 {[%clk 0:00:34.2]}
35... Rh6 {[%clk 0:01:36.5]} 36. Rxg7+ {[%clk 0:00:26.3]} 36... Kh8 {[%clk
0:01:36.6]} 37. Re7 {[%clk 0:00:25.4]} 37... e4 {[%clk 0:01:35.7]} 38. Ng5
{[%clk 0:00:23.4]} 38... Rh2+ {[%clk 0:01:32.5]} 39. Kc3 {[%clk 0:00:22.6]}
39... Rg2 {[%clk 0:01:18.1]} 40. Nxe4 {[%clk 0:00:18.5]} 40... Re2 {[%clk
0:01:17.7]} 41. Re8+ {[%clk 0:00:17.4]} 41... Kg7 {[%clk 0:01:18.2]} 42. Nd6
{[%clk 0:00:18.3]} 42... Ra2 {[%clk 0:01:13.7]} 43. b6 {[%clk 0:00:15.5]} 43...
Ra6 {[%clk 0:01:13.7]} 44. c5 {[%clk 0:00:14.3]} 44... Ra3+ {[%clk 0:01:11]} 45.
Kb4 {[%clk 0:00:14.3]} 45... Ra1 {[%clk 0:01:10.9]} 46. Re3 {[%clk 0:00:14.4]}
46... Rb1+ {[%clk 0:01:10.8]} 47. Rb3 {[%clk 0:00:14.1]} 47... Rc1 {[%clk
0:01:10.4]} 48. Rxf3 {[%clk 0:00:14.1]} 1-0

[Event "Early-Titled-Tuesday-Blitz-April-23-2024"]
[Site "Chess.com"]
[Date "2024.04.23"]
[Round "3"]
[White "rezamahdavi2008"]
[Black "Carow-Kann"]
[Result "1-0"]
[WhiteElo "2914"]
[BlackElo "2677"]
[TimeControl "180+1"]
[EndTime "8:28:23 PDT"]
[Termination "rezamahdavi2008 won by resignation"]

1. e4 {[%clk 0:03:00.9]} 1... c5 {[%clk 0:02:59.2]} 2. Nf3 {[%clk 0:02:58.6]}
2... e6 {[%clk 0:02:59.3]} 3. d4 {[%clk 0:02:58.6]} 3... cxd4 {[%clk 0:03:00]}
4. Nxd4 {[%clk 0:02:59.5]} 4... a6 {[%clk 0:02:59.7]} 5. c4 {[%clk 0:02:50.1]}
5... Nf6 {[%clk 0:02:59.4]} 6. Nc3 {[%clk 0:02:49.3]} 6... Qc7 {[%clk
0:02:59.9]} 7. Be2 {[%clk 0:02:40.6]} 7... b6 {[%clk 0:03:00.1]} 8. O-O {[%clk
0:02:36.8]} 8... Bb7 {[%clk 0:02:59.7]} 9. Qd3 {[%clk 0:02:37.5]} 9... Nc6
{[%clk 0:02:59]} 10. Nxc6 {[%clk 0:02:33.4]} 10... dxc6 {[%clk 0:02:59.9]} 11.
f4 {[%clk 0:02:31.8]} 11... Rd8 {[%clk 0:02:59.7]} 12. Qh3 {[%clk 0:02:27.3]}
12... c5 {[%clk 0:02:55.8]} 13. Bf3 {[%clk 0:02:16.7]} 13... Rd3 {[%clk
0:02:44.5]} 14. Qh4 {[%clk 0:02:11.7]} 14... Be7 {[%clk 0:02:39]} 15. Qe1 {[%clk
0:02:12.3]} 15... O-O {[%clk 0:02:14.5]} 16. e5 {[%clk 0:02:10.8]} 16... Ne8
{[%clk 0:02:14.2]} 17. Qe2 {[%clk 0:02:01.9]} 17... Rd8 {[%clk 0:02:08.6]} 18.
Ne4 {[%clk 0:01:56.9]} 18... Bc6 {[%clk 0:01:44.4]} 19. Be3 {[%clk 0:01:47.6]}
19... Qb7 {[%clk 0:01:43.9]} 20. Bf2 {[%clk 0:01:43.2]} 20... Nc7 {[%clk
0:01:39]} 21. Rfd1 {[%clk 0:01:42.9]} 21... Qc8 {[%clk 0:01:05.5]} 22. Nf6+
{[%clk 0:01:16.9]} 22... Bxf6 {[%clk 0:01:00.1]} 23. Bxc6 {[%clk 0:01:11.9]}
23... Be7 {[%clk 0:00:59]} 24. Be4 {[%clk 0:01:12.5]} 24... g6 {[%clk
0:00:52.4]} 25. g4 {[%clk 0:01:08.5]} 25... b5 {[%clk 0:00:50.1]} 26. b3 {[%clk
0:01:07.8]} 26... f5 {[%clk 0:00:39.1]} 27. exf6 {[%clk 0:01:07.9]} 27... Bxf6
{[%clk 0:00:39.2]} 28. Rxd8 {[%clk 0:01:07.5]} 28... Rxd8 {[%clk 0:00:37.3]} 29.
Rd1 {[%clk 0:01:08.3]} 29... Bd4 {[%clk 0:00:36.8]} 30. Kg2 {[%clk 0:01:04.2]}
30... Qd7 {[%clk 0:00:36.1]} 31. Bf3 {[%clk 0:01:01.7]} 31... Qd6 {[%clk
0:00:35]} 32. Qe4 {[%clk 0:00:59.7]} 32... bxc4 {[%clk 0:00:31.7]} 33. bxc4
{[%clk 0:00:59.8]} 33... Ne8 {[%clk 0:00:29.7]} 34. Bh4 {[%clk 0:00:56.7]} 34...
Rb8 {[%clk 0:00:27.2]} 35. Rd2 {[%clk 0:00:57.3]} 35... Qd7 {[%clk 0:00:21.3]}
36. Re2 {[%clk 0:00:56.3]} 36... Nd6 {[%clk 0:00:20]} 37. Qxe6+ {[%clk
0:00:55.3]} 37... Qxe6 {[%clk 0:00:20.4]} 38. Rxe6 {[%clk 0:00:56.2]} 38... Nxc4
{[%clk 0:00:19.7]} 39. Bd5 {[%clk 0:00:56.7]} 39... Rb2+ {[%clk 0:00:15.7]} 40.
Re2+ {[%clk 0:00:55.9]} 40... Kg7 {[%clk 0:00:13.3]} 41. Bxc4 {[%clk 0:00:56.8]}
1-0

[Event "Early-Titled-Tuesday-Blitz-April-23-2024"]
[Site "Chess.com"]
[Date "2024.04.23"]
[Round "3"]
[White "mr65"]
[Black "AlainBruxelles"]
[Result "0-1"]
[WhiteElo "1961"]
[BlackElo "2347"]
[TimeControl "180+1"]
[EndTime "8:28:25 PDT"]
[Termination "AlainBruxelles won on time"]

1. e4 {[%clk 0:02:44.7]} 1... c5 {[%clk 0:02:59]} 2. d4 {[%clk 0:02:43.3]} 2...
cxd4 {[%clk 0:02:58.5]} 3. c3 {[%clk 0:02:43.6]} 3... dxc3 {[%clk 0:02:56.7]} 4.
Nxc3 {[%clk 0:02:43.4]} 4... e6 {[%clk 0:02:57.4]} 5. Nf3 {[%clk 0:02:43.2]}
5... d6 {[%clk 0:02:57.6]} 6. Bc4 {[%clk 0:02:43]} 6... a6 {[%clk 0:02:57.8]} 7.
O-O {[%clk 0:02:42.7]} 7... Nc6 {[%clk 0:02:58.4]} 8. Qe2 {[%clk 0:02:42.5]}
8... Nf6 {[%clk 0:02:58.4]} 9. Rd1 {[%clk 0:02:42.2]} 9... Qc7 {[%clk
0:02:58.3]} 10. h3 {[%clk 0:02:32.7]} 10... Be7 {[%clk 0:02:57.8]} 11. Bf4
{[%clk 0:02:31.9]} 11... Ne5 {[%clk 0:02:52.8]} 12. Bb3 {[%clk 0:02:28.2]} 12...
O-O {[%clk 0:02:51.7]} 13. Rac1 {[%clk 0:02:28.1]} 13... Qb8 {[%clk 0:02:50.6]}
14. a3 {[%clk 0:02:19.6]} 14... Bd7 {[%clk 0:02:50.6]} 15. Bg5 {[%clk 0:02:15]}
15... Nxf3+ {[%clk 0:02:42.9]} 16. Qxf3 {[%clk 0:02:14.1]} 16... Bc6 {[%clk
0:02:43.4]} 17. Qe2 {[%clk 0:02:11.5]} 17... Re8 {[%clk 0:02:42.2]} 18. Bf4
{[%clk 0:02:05.1]} 18... Nd7 {[%clk 0:02:36.8]} 19. Qd2 {[%clk 0:01:43.5]} 19...
Nc5 {[%clk 0:02:34.5]} 20. Bc2 {[%clk 0:01:41.3]} 20... Rd8 {[%clk 0:02:33.8]}
21. b4 {[%clk 0:01:35.2]} 21... Nd7 {[%clk 0:02:26.8]} 22. Bxd6 {[%clk
0:01:17.8]} 22... Bxd6 {[%clk 0:02:20.5]} 23. Qxd6 {[%clk 0:01:16.9]} 23... Nf6
{[%clk 0:02:19.6]} 24. Qxb8 {[%clk 0:01:13.6]} 24... Raxb8 {[%clk 0:02:03.7]}
25. a4 {[%clk 0:01:13.2]} 25... Kf8 {[%clk 0:01:57.6]} 26. f3 {[%clk 0:01:11.3]}
26... Rbc8 {[%clk 0:01:56.4]} 27. b5 {[%clk 0:01:06.9]} 27... Rxd1+ {[%clk
0:01:54.3]} 28. Rxd1 {[%clk 0:00:42.1]} 28... axb5 {[%clk 0:01:50.9]} 29. a5
{[%clk 0:00:41.9]} 29... b4 {[%clk 0:01:45.9]} 30. Na2 {[%clk 0:00:37.8]} 30...
Bb5 {[%clk 0:01:35.5]} 31. Bb3 {[%clk 0:00:37.4]} 31... Ke7 {[%clk 0:01:31.3]}
32. Nxb4 {[%clk 0:00:33.7]} 32... Ra8 {[%clk 0:01:26.4]} 33. Ra1 {[%clk
0:00:32.2]} 33... Nd7 {[%clk 0:01:26.1]} 34. Kf2 {[%clk 0:00:25.1]} 34... Nc5
{[%clk 0:01:25.7]} 35. Bc2 {[%clk 0:00:21.8]} 35... b6 {[%clk 0:01:24.2]} 36.
Rb1 {[%clk 0:00:16.6]} 36... Rxa5 {[%clk 0:01:18.2]} 37. Ke3 {[%clk 0:00:11.8]}
37... Bd7 {[%clk 0:01:09.7]} 38. e5 {[%clk 0:00:10.1]} 38... b5 {[%clk
0:01:07.7]} 39. f4 {[%clk 0:00:09.4]} 39... g6 {[%clk 0:01:06.5]} 40. h4 {[%clk
0:00:08.6]} 40... Ra3+ {[%clk 0:01:05.3]} 41. Kd4 {[%clk 0:00:05.1]} 41... Na4
{[%clk 0:01:04.2]} 42. Bxa4 {[%clk 0:00:02.8]} 42... bxa4 {[%clk 0:01:02.6]} 0-1